[Event "*** Titled Tuesday Blitz"]
[Site "Chess.com"]
[Date "2021.04.06"]
[Round "2"]
[White "ChessWarrior7197"]
[Black "chescomhuynya"]
[Result "1-0"]
[WhiteElo "2924"]
[BlackElo "2566"]
[TimeControl "180+1"]
[EndTime "10:14:52 PDT"]
[Termination "ChessWarrior7197 won by resignation"]

1. e4 {[%clk 0:03:00.9]} 1... c5 {[%clk 0:03:00.6]} 2. Nf3 {[%clk 0:02:58.4]}
2... d6 {[%clk 0:03:01.1]} 3. c3 {[%clk 0:02:55.7]} 3... Nf6 {[%clk 0:03:01]} 4.
h3 {[%clk 0:02:55.6]} 4... Nc6 {[%clk 0:02:58.5]} 5. d4 {[%clk 0:02:54.8]} 5...
cxd4 {[%clk 0:02:49.5]} 6. cxd4 {[%clk 0:02:55.7]} 6... d5 {[%clk 0:02:46.4]} 7.
e5 {[%clk 0:02:55.4]} 7... Ne4 {[%clk 0:02:46.7]} 8. Bd3 {[%clk 0:02:56]} 8...
e6 {[%clk 0:02:45.2]} 9. O-O {[%clk 0:02:55.8]} 9... Qb6 {[%clk 0:02:42.2]} 10.
Nc3 {[%clk 0:02:54.9]} 10... Nxc3 {[%clk 0:02:37.3]} 11. bxc3 {[%clk 0:02:55.8]}
11... h6 {[%clk 0:02:34.3]} 12. Nh2 {[%clk 0:02:54.8]} 12... Be7 {[%clk
0:02:33.9]} 13. f4 {[%clk 0:02:54.7]} 13... g6 {[%clk 0:02:34.2]} 14. Ng4 {[%clk
0:02:54.1]} 14... Bd7 {[%clk 0:02:27.8]} 15. Qe1 {[%clk 0:02:48.2]} 15... Na5
{[%clk 0:02:08.7]} 16. Nf6+ {[%clk 0:02:43.8]} 16... Bxf6 {[%clk 0:02:08.6]} 17.
exf6 {[%clk 0:02:44.7]} 17... O-O-O {[%clk 0:02:03.5]} 18. Ba3 {[%clk
0:02:43.3]} 18... Kb8 {[%clk 0:01:58.4]} 19. Rb1 {[%clk 0:02:32.5]} 19... Qc7
{[%clk 0:01:52.9]} 20. Qe5 {[%clk 0:02:32.9]} 20... Nc6 {[%clk 0:01:44]} 21.
Rxb7+ {[%clk 0:02:24.5]} 21... Kxb7 {[%clk 0:01:43.4]} 22. Ba6+ {[%clk
0:02:19.7]} 22... Kb6 {[%clk 0:01:14.7]} 23. Rb1+ {[%clk 0:02:18.7]} 23... Nb4
{[%clk 0:01:15]} 24. Rxb4+ {[%clk 0:02:19.1]} 24... Kc6 {[%clk 0:01:15.5]} 25.
Bb5+ {[%clk 0:02:19.4]} 25... Kb7 {[%clk 0:01:15.1]} 26. Bxd7+ {[%clk
0:02:19.8]} 1-0

[Event "*** Titled Tuesday Blitz"]
[Site "Chess.com"]
[Date "2021.04.06"]
[Round "2"]
[White "RestartingChess"]
[Black "DeTimmerman"]
[Result "0-1"]
[WhiteElo "2537"]
[BlackElo "2836"]
[TimeControl "180+1"]
[EndTime "10:14:57 PDT"]
[Termination "DeTimmerman won by resignation"]

1. e4 {[%clk 0:03:00.9]} 1... e5 {[%clk 0:02:59.5]} 2. Nf3 {[%clk 0:03:01.3]}
2... Nc6 {[%clk 0:02:57.8]} 3. Bc4 {[%clk 0:03:01.6]} 3... Nf6 {[%clk
0:02:57.2]} 4. d3 {[%clk 0:03:00.3]} 4... Be7 {[%clk 0:02:57.6]} 5. h3 {[%clk
0:03:00.6]} 5... O-O {[%clk 0:02:58.5]} 6. O-O {[%clk 0:03:01.2]} 6... d6 {[%clk
0:02:58.9]} 7. Nc3 {[%clk 0:03:01.1]} 7... Kh8 {[%clk 0:02:59.5]} 8. Bg5 {[%clk
0:03:01.6]} 8... Ng8 {[%clk 0:02:59.5]} 9. Bxe7 {[%clk 0:03:01.8]} 9... Ngxe7
{[%clk 0:03:00.4]} 10. Nd5 {[%clk 0:03:02.1]} 10... f5 {[%clk 0:03:00.1]} 11.
Nxe7 {[%clk 0:03:02.4]} 11... Nxe7 {[%clk 0:02:59.7]} 12. Nh2 {[%clk 0:03:02.9]}
12... Qe8 {[%clk 0:02:57.2]} 13. f4 {[%clk 0:03:00]} 13... exf4 {[%clk 0:02:52]}
14. Rxf4 {[%clk 0:02:59.6]} 14... Ng6 {[%clk 0:02:46.8]} 15. Rf1 {[%clk
0:02:55.5]} 15... Ne5 {[%clk 0:02:46.4]} 16. exf5 {[%clk 0:02:51.1]} 16... Nxc4
{[%clk 0:02:44.1]} 17. dxc4 {[%clk 0:02:49.8]} 17... Qe3+ {[%clk 0:02:44]} 18.
Kh1 {[%clk 0:02:49.9]} 18... Bxf5 {[%clk 0:02:43.9]} 19. c3 {[%clk 0:02:34.6]}
19... Be4 {[%clk 0:02:26.6]} 20. Qd4 {[%clk 0:02:29]} 20... Qe2 {[%clk
0:01:58.1]} 21. Rg1 {[%clk 0:02:28.1]} 21... Rf2 {[%clk 0:01:54.8]} 22. Rae1
{[%clk 0:02:23.5]} 22... Rxg2 {[%clk 0:01:55.2]} 23. Rxe2 {[%clk 0:02:19.9]}
23... Rxe2+ {[%clk 0:01:56.1]} 24. Rg2 {[%clk 0:01:58.7]} 24... Bxg2+ {[%clk
0:01:54.5]} 25. Kg1 {[%clk 0:01:58.5]} 25... Rf8 {[%clk 0:01:51.1]} 26. Qxa7
{[%clk 0:01:47.7]} 26... Bc6 {[%clk 0:01:48.3]} 27. Qd4 {[%clk 0:01:40.9]} 27...
Rg2+ {[%clk 0:01:47.4]} 28. Kh1 {[%clk 0:01:41.3]} 28... Rd2+ {[%clk 0:01:46.2]}
0-1

[Event "*** Titled Tuesday Blitz"]
[Site "Chess.com"]
[Date "2021.04.06"]
[Round "2"]
[White "babyking1205"]
[Black "Rud_Makarian"]
[Result "1-0"]
[WhiteElo "2573"]
[BlackElo "2864"]
[TimeControl "180+1"]
[EndTime "10:15:07 PDT"]
[Termination "babyking1205 won by resignation"]

1. e4 {[%clk 0:03:00.9]} 1... e5 {[%clk 0:03:00.2]} 2. Nf3 {[%clk 0:03:00.6]}
2... d6 {[%clk 0:03:00.4]} 3. d4 {[%clk 0:03:01.1]} 3... exd4 {[%clk 0:03:01.3]}
4. Nxd4 {[%clk 0:02:59.4]} 4... Nf6 {[%clk 0:03:01.7]} 5. Nc3 {[%clk 0:02:58.9]}
5... Be7 {[%clk 0:03:02.3]} 6. h3 {[%clk 0:02:58.3]} 6... O-O {[%clk 0:03:02.5]}
7. Be3 {[%clk 0:02:58.6]} 7... Re8 {[%clk 0:03:02.2]} 8. Qf3 {[%clk 0:02:59]}
8... Nc6 {[%clk 0:03:01.4]} 9. O-O-O {[%clk 0:02:58.8]} 9... Bd7 {[%clk
0:03:00.5]} 10. g4 {[%clk 0:02:57]} 10... Nxd4 {[%clk 0:02:57.6]} 11. Bxd4
{[%clk 0:02:57.9]} 11... Bc6 {[%clk 0:02:58.2]} 12. Bd3 {[%clk 0:02:55.9]} 12...
Nd7 {[%clk 0:02:57.5]} 13. h4 {[%clk 0:02:48.2]} 13... Bf6 {[%clk 0:02:57.7]}
14. Bc4 {[%clk 0:02:44.3]} 14... Bxd4 {[%clk 0:02:38.3]} 15. Bxf7+ {[%clk
0:02:36.6]} 15... Kh8 {[%clk 0:02:38.4]} 16. Bxe8 {[%clk 0:02:37]} 16... Bxc3
{[%clk 0:02:35.6]} 17. Bxd7 {[%clk 0:02:37]} 17... Bxb2+ {[%clk 0:02:32]} 18.
Kxb2 {[%clk 0:02:37.9]} 18... Qxd7 {[%clk 0:02:32.8]} 19. Rhe1 {[%clk
0:02:18.2]} 19... Qe7 {[%clk 0:02:29.8]} 20. Qg3 {[%clk 0:02:15.2]} 20... a5
{[%clk 0:02:27]} 21. e5 {[%clk 0:02:14.2]} 21... d5 {[%clk 0:02:27.1]} 22. e6
{[%clk 0:02:12.3]} 22... a4 {[%clk 0:02:27.4]} 23. Qa3 {[%clk 0:02:12]} 23...
Qxh4 {[%clk 0:02:25.5]} 24. e7 {[%clk 0:02:10.8]} 24... Re8 {[%clk 0:02:25.8]}
25. Qb4 {[%clk 0:02:07.8]} 25... Kg8 {[%clk 0:02:21.8]} 26. Rd4 {[%clk
0:02:03.9]} 26... Qf6 {[%clk 0:02:14.3]} 27. Kb1 {[%clk 0:01:55.5]} 27... g5
{[%clk 0:02:11.3]} 28. f4 {[%clk 0:01:48.5]} 28... gxf4 {[%clk 0:02:08.1]} 29.
Rxf4 {[%clk 0:01:49.4]} 29... Qd6 {[%clk 0:01:53.3]} 30. Qxd6 {[%clk 0:01:48.4]}
30... cxd6 {[%clk 0:01:54.2]} 31. Rf6 {[%clk 0:01:49.1]} 31... Kg7 {[%clk
0:01:49.2]} 32. Rxd6 {[%clk 0:01:48.9]} 32... Rg8 {[%clk 0:01:47.6]} 33. Rxc6
{[%clk 0:01:48.2]} 1-0

[Event "*** Titled Tuesday Blitz"]
[Site "Chess.com"]
[Date "2021.04.06"]
[Round "2"]
[White "fearless_guy"]
[Black "zajka-molotok"]
[Result "1-0"]
[WhiteElo "2786"]
[BlackElo "2522"]
[TimeControl "180+1"]
[EndTime "10:15:12 PDT"]
[Termination "fearless_guy won by resignation"]

1. e4 {[%clk 0:02:59.4]} 1... d6 {[%clk 0:02:59.9]} 2. d4 {[%clk 0:02:57.9]}
2... Nf6 {[%clk 0:03:00.1]} 3. Nc3 {[%clk 0:02:57.6]} 3... c6 {[%clk 0:03:00.2]}
4. f4 {[%clk 0:02:56.1]} 4... Qa5 {[%clk 0:02:59.7]} 5. e5 {[%clk 0:02:43.3]}
5... Ne4 {[%clk 0:02:55.8]} 6. Bd2 {[%clk 0:02:42.7]} 6... Nxd2 {[%clk
0:02:53.5]} 7. Qxd2 {[%clk 0:02:43.6]} 7... Bf5 {[%clk 0:02:40.6]} 8. Nf3 {[%clk
0:02:41.7]} 8... e6 {[%clk 0:02:39.8]} 9. Bd3 {[%clk 0:02:38.4]} 9... Bxd3
{[%clk 0:02:39]} 10. Qxd3 {[%clk 0:02:39.3]} 10... Be7 {[%clk 0:02:35.1]} 11.
O-O-O {[%clk 0:02:39.3]} 11... Nd7 {[%clk 0:02:32]} 12. Kb1 {[%clk 0:02:39.9]}
12... O-O-O {[%clk 0:02:30.5]} 13. h4 {[%clk 0:02:35.2]} 13... d5 {[%clk
0:02:11.9]} 14. Ng5 {[%clk 0:02:28.4]} 14... Bxg5 {[%clk 0:02:02.8]} 15. hxg5
{[%clk 0:02:29.3]} 15... g6 {[%clk 0:01:59.7]} 16. Rh3 {[%clk 0:02:24.1]} 16...
c5 {[%clk 0:01:59.3]} 17. Nb5 {[%clk 0:02:22.4]} 17... Kb8 {[%clk 0:01:56.3]}
18. Nd6 {[%clk 0:02:21.3]} 18... Rdf8 {[%clk 0:01:51.7]} 19. Rdh1 {[%clk
0:02:13.2]} 19... Qb6 {[%clk 0:01:47.4]} 20. Qa3 {[%clk 0:01:57]} 20... cxd4
{[%clk 0:01:43.4]} 21. Rb3 {[%clk 0:01:56.4]} 21... Qc6 {[%clk 0:01:30]} 22.
Rxb7+ {[%clk 0:01:52.2]} 22... Qxb7 {[%clk 0:01:30.2]} 23. Nxb7 {[%clk
0:01:53.1]} 23... Kxb7 {[%clk 0:01:31.1]} 24. Qe7 {[%clk 0:01:52.7]} 24... Kc6
{[%clk 0:01:28.5]} 25. Qd6+ {[%clk 0:01:48.9]} 1-0

[Event "*** Titled Tuesday Blitz"]
[Site "Chess.com"]
[Date "2021.04.06"]
[Round "2"]
[White "Alexander_Zubov"]
[Black "mbachez"]
[Result "1-0"]
[WhiteElo "2989"]
[BlackElo "2478"]
[TimeControl "180+1"]
[EndTime "10:15:19 PDT"]
[Termination "Alexander_Zubov won by resignation"]

1. d4 {[%clk 0:03:00.9]} 1... Nf6 {[%clk 0:02:58.9]} 2. c4 {[%clk 0:03:00.7]}
2... Nc6 {[%clk 0:02:58.8]} 3. Nf3 {[%clk 0:02:59.3]} 3... e6 {[%clk 0:02:58.9]}
4. a3 {[%clk 0:02:58.8]} 4... d6 {[%clk 0:02:58.4]} 5. Nc3 {[%clk 0:02:57.6]}
5... g6 {[%clk 0:02:57.7]} 6. d5 {[%clk 0:02:57.7]} 6... Ne7 {[%clk 0:02:57.2]}
7. dxe6 {[%clk 0:02:57.5]} 7... Bxe6 {[%clk 0:02:56]} 8. e4 {[%clk 0:02:57]}
8... Bg7 {[%clk 0:02:56.1]} 9. Be2 {[%clk 0:02:56.7]} 9... O-O {[%clk
0:02:56.2]} 10. O-O {[%clk 0:02:57.3]} 10... Bg4 {[%clk 0:02:52.4]} 11. Nd4
{[%clk 0:02:45.7]} 11... Bxe2 {[%clk 0:02:51.8]} 12. Ndxe2 {[%clk 0:02:42.9]}
12... Re8 {[%clk 0:02:47.8]} 13. f3 {[%clk 0:02:33.7]} 13... a5 {[%clk
0:02:47.5]} 14. Bg5 {[%clk 0:02:30.2]} 14... h6 {[%clk 0:02:46.9]} 15. Be3
{[%clk 0:02:29.8]} 15... Nc6 {[%clk 0:02:38.1]} 16. b3 {[%clk 0:02:26.2]} 16...
Kh7 {[%clk 0:02:36.1]} 17. Rc1 {[%clk 0:02:17.5]} 17... Qc8 {[%clk 0:02:34.2]}
18. Nd5 {[%clk 0:02:14.4]} 18... Ne5 {[%clk 0:02:24.9]} 19. Qd2 {[%clk
0:02:09.3]} 19... a4 {[%clk 0:02:24.2]} 20. b4 {[%clk 0:02:08.5]} 20... Nxd5
{[%clk 0:02:16.7]} 21. cxd5 {[%clk 0:02:08.5]} 21... b5 {[%clk 0:02:14.7]} 22.
Bd4 {[%clk 0:02:02.4]} 22... Nc4 {[%clk 0:02:09.5]} 23. Qc3 {[%clk 0:01:59.8]}
23... Bxd4+ {[%clk 0:02:01.5]} 24. Nxd4 {[%clk 0:01:59.3]} 24... Qa6 {[%clk
0:01:38.9]} 25. Nxb5 {[%clk 0:01:53]} 25... Qb6+ {[%clk 0:01:38.8]} 26. Qd4
{[%clk 0:01:50.8]} 26... Qxd4+ {[%clk 0:01:38.4]} 27. Nxd4 {[%clk 0:01:50.5]}
27... Nxa3 {[%clk 0:01:38.6]} 28. Rc3 {[%clk 0:01:48.5]} 28... Reb8 {[%clk
0:01:31.9]} 29. Rxa3 {[%clk 0:01:46.3]} 1-0

[Event "*** Titled Tuesday Blitz"]
[Site "Chess.com"]
[Date "2021.04.06"]
[Round "2"]
[White "PolandHussars"]
[Black "kaponerde"]
[Result "1-0"]
[WhiteElo "2599"]
[BlackElo "2121"]
[TimeControl "180+1"]
[EndTime "10:15:28 PDT"]
[Termination "PolandHussars won by resignation"]

1. e4 {[%clk 0:03:00.9]} 1... c5 {[%clk 0:02:59.7]} 2. Ne2 {[%clk 0:03:00.6]}
2... g6 {[%clk 0:02:58.7]} 3. g3 {[%clk 0:03:01]} 3... Bg7 {[%clk 0:02:58.7]} 4.
Bg2 {[%clk 0:03:01.7]} 4... Nc6 {[%clk 0:02:53.9]} 5. c3 {[%clk 0:03:02]} 5...
Qa5 {[%clk 0:02:32.5]} 6. O-O {[%clk 0:03:01.2]} 6... Nf6 {[%clk 0:02:32]} 7. d4
{[%clk 0:02:59.2]} 7... cxd4 {[%clk 0:02:31]} 8. cxd4 {[%clk 0:02:58.4]} 8... d6
{[%clk 0:02:31]} 9. Nbc3 {[%clk 0:02:58.2]} 9... Qh5 {[%clk 0:02:30.2]} 10. f3
{[%clk 0:02:55.9]} 10... O-O {[%clk 0:02:24]} 11. d5 {[%clk 0:02:50.6]} 11...
Ne5 {[%clk 0:02:00.6]} 12. Nf4 {[%clk 0:02:49.6]} 12... Qh6 {[%clk 0:02:00.6]}
13. Ne6 {[%clk 0:02:45.1]} 13... Qh5 {[%clk 0:02:00.7]} 14. Nxf8 {[%clk
0:02:26.3]} 14... Kxf8 {[%clk 0:02:00.5]} 15. Be3 {[%clk 0:02:19.6]} 15... Bh3
{[%clk 0:01:59.3]} 16. Rc1 {[%clk 0:02:11]} 16... Bxg2 {[%clk 0:01:15.1]} 17.
Kxg2 {[%clk 0:02:11.9]} 17... Nfg4 {[%clk 0:01:14.4]} 18. fxg4 {[%clk
0:02:08.1]} 18... Nxg4 {[%clk 0:01:15.3]} 19. Bg1 {[%clk 0:02:07.1]} 19... Qg5
{[%clk 0:01:10]} 20. h3 {[%clk 0:01:58]} 20... Ne5 {[%clk 0:01:07.7]} 21. Qe2
{[%clk 0:01:52.4]} 21... h5 {[%clk 0:01:06.3]} 22. Be3 {[%clk 0:01:49.4]} 1-0

[Event "*** Titled Tuesday Blitz"]
[Site "Chess.com"]
[Date "2021.04.06"]
[Round "2"]
[White "Irishchessman16"]
[Black "Semetey"]
[Result "0-1"]
[WhiteElo "2282"]
[BlackElo "2519"]
[TimeControl "180+1"]
[EndTime "10:15:35 PDT"]
[Termination "Semetey won by resignation"]

1. e4 {[%clk 0:03:00.9]} 1... c5 {[%clk 0:02:58.6]} 2. Nf3 {[%clk 0:03:00.4]}
2... d6 {[%clk 0:02:57.9]} 3. d4 {[%clk 0:02:52.6]} 3... cxd4 {[%clk 0:02:58.8]}
4. Nxd4 {[%clk 0:02:52.9]} 4... Nf6 {[%clk 0:02:58.5]} 5. f3 {[%clk 0:02:44.8]}
5... e5 {[%clk 0:02:55.4]} 6. Nb3 {[%clk 0:02:44.4]} 6... Be6 {[%clk 0:02:53.6]}
7. c4 {[%clk 0:02:43.9]} 7... Nbd7 {[%clk 0:02:53.4]} 8. Nc3 {[%clk 0:02:44]}
8... Be7 {[%clk 0:02:53.2]} 9. Be3 {[%clk 0:02:43.9]} 9... O-O {[%clk
0:02:53.3]} 10. Qd2 {[%clk 0:02:41.2]} 10... a6 {[%clk 0:02:53.5]} 11. Be2
{[%clk 0:02:38.9]} 11... Qc7 {[%clk 0:02:52.9]} 12. Nd5 {[%clk 0:02:38.3]} 12...
Bxd5 {[%clk 0:02:50.8]} 13. cxd5 {[%clk 0:02:38.1]} 13... b6 {[%clk 0:02:48.3]}
14. Rc1 {[%clk 0:02:36.5]} 14... Nc5 {[%clk 0:02:48.5]} 15. Na1 {[%clk
0:02:32.9]} 15... a5 {[%clk 0:02:45.8]} 16. b3 {[%clk 0:02:28.8]} 16... Nh5
{[%clk 0:02:36.5]} 17. g3 {[%clk 0:02:21.4]} 17... f5 {[%clk 0:02:32.9]} 18.
exf5 {[%clk 0:02:19.4]} 18... Rxf5 {[%clk 0:02:32.4]} 19. g4 {[%clk 0:02:18.4]}
19... Bh4+ {[%clk 0:02:32.4]} 20. Kd1 {[%clk 0:02:18]} 20... Rf4 {[%clk
0:01:46.3]} 21. gxh5 {[%clk 0:02:07.9]} 21... Bg5 {[%clk 0:01:46.3]} 22. Nc2
{[%clk 0:01:56.1]} 22... Qf7 {[%clk 0:01:25]} 23. Rg1 {[%clk 0:01:54.2]} 23...
Bh6 {[%clk 0:01:24.1]} 24. Bxf4 {[%clk 0:01:42.2]} 24... Bxf4 {[%clk 0:01:23.6]}
25. Qe1 {[%clk 0:01:37.9]} 25... Qxd5+ {[%clk 0:01:17.8]} 0-1

[Event "*** Titled Tuesday Blitz"]
[Site "Chess.com"]
[Date "2021.04.06"]
[Round "2"]
[White "Kiborg95"]
[Black "frenchpin"]
[Result "1-0"]
[WhiteElo "2807"]
[BlackElo "2527"]
[TimeControl "180+1"]
[EndTime "10:15:36 PDT"]
[Termination "Kiborg95 won by resignation"]

1. e4 {[%clk 0:03:00.9]} 1... e6 {[%clk 0:03:00.9]} 2. d3 {[%clk 0:02:55.1]}
2... d5 {[%clk 0:03:01.2]} 3. Nd2 {[%clk 0:02:55.4]} 3... Nf6 {[%clk 0:03:01.5]}
4. e5 {[%clk 0:02:55.9]} 4... Nfd7 {[%clk 0:03:01]} 5. f4 {[%clk 0:02:56.6]}
5... c5 {[%clk 0:03:01.4]} 6. Ndf3 {[%clk 0:02:56.9]} 6... Nc6 {[%clk
0:02:54.4]} 7. g3 {[%clk 0:02:57.3]} 7... Be7 {[%clk 0:02:53.7]} 8. Bg2 {[%clk
0:02:57]} 8... O-O {[%clk 0:02:53.6]} 9. Nh3 {[%clk 0:02:57.6]} 9... f6 {[%clk
0:02:53.5]} 10. exf6 {[%clk 0:02:57.3]} 10... Bxf6 {[%clk 0:02:47.2]} 11. O-O
{[%clk 0:02:57.4]} 11... e5 {[%clk 0:02:40.6]} 12. c3 {[%clk 0:02:57.6]} 12...
e4 {[%clk 0:02:25.4]} 13. dxe4 {[%clk 0:02:54.7]} 13... dxe4 {[%clk 0:02:25.7]}
14. Nfg5 {[%clk 0:02:55.1]} 14... Qb6 {[%clk 0:01:41.9]} 15. Nxe4 {[%clk
0:02:26.5]} 15... c4+ {[%clk 0:01:40.2]} 16. Kh1 {[%clk 0:02:25.7]} 16... Rd8
{[%clk 0:01:40.2]} 17. Qd5+ {[%clk 0:02:22.1]} 17... Kh8 {[%clk 0:01:36.3]} 18.
Qxc4 {[%clk 0:02:15.4]} 18... Be7 {[%clk 0:01:31.8]} 19. Nhg5 {[%clk 0:02:06.5]}
19... Nde5 {[%clk 0:01:10.3]} 20. fxe5 {[%clk 0:02:03]} 20... Nxe5 {[%clk
0:01:11.2]} 21. Nf7+ {[%clk 0:02:00.6]} 21... Nxf7 {[%clk 0:01:09.8]} 22. Qxf7
{[%clk 0:02:01.5]} 22... Qc7 {[%clk 0:00:55.3]} 23. Bg5 {[%clk 0:01:53.5]} 23...
Bd6 {[%clk 0:00:54]} 24. Qxc7 {[%clk 0:01:50.8]} 24... Bxc7 {[%clk 0:00:53.6]}
25. Bxd8 {[%clk 0:01:51.1]} 1-0

[Event "*** Titled Tuesday Blitz"]
[Site "Chess.com"]
[Date "2021.04.06"]
[Round "2"]
[White "MalyDominator"]
[Black "garicradomir"]
[Result "1-0"]
[WhiteElo "2490"]
[BlackElo "2263"]
[TimeControl "180+1"]
[EndTime "10:15:43 PDT"]
[Termination "MalyDominator won by resignation"]

1. e4 {[%clk 0:03:00.9]} 1... Nc6 {[%clk 0:02:57.8]} 2. d4 {[%clk 0:03:00.2]}
2... e5 {[%clk 0:02:56.4]} 3. d5 {[%clk 0:02:59]} 3... Nce7 {[%clk 0:02:56.3]}
4. h4 {[%clk 0:02:51.5]} 4... h5 {[%clk 0:02:53.4]} 5. Be2 {[%clk 0:02:45.1]}
5... Nf6 {[%clk 0:02:48.7]} 6. Bg5 {[%clk 0:02:44.4]} 6... Ng4 {[%clk
0:02:42.7]} 7. Bxg4 {[%clk 0:02:42.9]} 7... hxg4 {[%clk 0:02:42.8]} 8. Qxg4
{[%clk 0:02:43.8]} 8... f6 {[%clk 0:02:42.1]} 9. Be3 {[%clk 0:02:40.9]} 9... d6
{[%clk 0:02:41.6]} 10. Qg3 {[%clk 0:02:40.2]} 10... Kf7 {[%clk 0:02:40.5]} 11.
Nc3 {[%clk 0:02:37.2]} 11... g6 {[%clk 0:02:36.9]} 12. O-O-O {[%clk 0:02:36]}
12... Bh6 {[%clk 0:02:30.8]} 13. Nh3 {[%clk 0:02:33.1]} 13... c6 {[%clk
0:02:23.3]} 14. f4 {[%clk 0:02:26.2]} 14... cxd5 {[%clk 0:02:11.1]} 15. exd5
{[%clk 0:02:23.3]} 15... Nf5 {[%clk 0:02:07.9]} 16. Qf2 {[%clk 0:02:19.7]} 16...
Nxe3 {[%clk 0:02:03.6]} 17. Qxe3 {[%clk 0:02:20.6]} 17... Bxh3 {[%clk 0:02:03]}
18. Qxh3 {[%clk 0:02:19.7]} 18... Bxf4+ {[%clk 0:02:02.4]} 19. Kb1 {[%clk
0:02:20]} 19... Qc8 {[%clk 0:02:02.3]} 20. Qf3 {[%clk 0:02:17.9]} 20... Qc5
{[%clk 0:01:33.6]} 21. Ne4 {[%clk 0:02:13]} 21... Qb6 {[%clk 0:01:25]} 22. g3
{[%clk 0:02:11.7]} 22... Qe3 {[%clk 0:01:18.7]} 23. Nxd6+ {[%clk 0:02:09]} 23...
Ke7 {[%clk 0:01:17.8]} 24. Qg4 {[%clk 0:02:03.9]} 24... Kxd6 {[%clk 0:01:10.8]}
25. Qe6+ {[%clk 0:02:02.6]} 25... Kc5 {[%clk 0:01:10]} 26. gxf4 {[%clk 0:02:00]}
26... exf4 {[%clk 0:01:09]} 27. Qxf6 {[%clk 0:01:59]} 27... Rae8 {[%clk
0:01:00.2]} 28. d6 {[%clk 0:01:50.4]} 28... Re6 {[%clk 0:00:59.4]} 29. Qxh8
{[%clk 0:01:48.2]} 1-0

[Event "*** Titled Tuesday Blitz"]
[Site "Chess.com"]
[Date "2021.04.06"]
[Round "2"]
[White "Klavdia_Nik"]
[Black "chessdiamant"]
[Result "0-1"]
[WhiteElo "2028"]
[BlackElo "2380"]
[TimeControl "180+1"]
[EndTime "10:16:02 PDT"]
[Termination "chessdiamant won on time"]

1. Nf3 {[%clk 0:02:14.4]} 1... c5 {[%clk 0:02:59.3]} 2. g3 {[%clk 0:02:09.3]}
2... Nc6 {[%clk 0:02:58.9]} 3. Bg2 {[%clk 0:02:07.6]} 3... g6 {[%clk 0:02:58.6]}
4. O-O {[%clk 0:02:05.6]} 4... Bg7 {[%clk 0:02:58.4]} 5. e4 {[%clk 0:02:04]}
5... d6 {[%clk 0:02:52.8]} 6. c3 {[%clk 0:02:00.3]} 6... Nf6 {[%clk 0:02:51.6]}
7. Re1 {[%clk 0:01:58.1]} 7... O-O {[%clk 0:02:50.9]} 8. h3 {[%clk 0:01:49.8]}
8... d5 {[%clk 0:02:35.3]} 9. e5 {[%clk 0:01:34.7]} 9... Ne8 {[%clk 0:02:34.3]}
10. d4 {[%clk 0:01:34.5]} 10... cxd4 {[%clk 0:02:33]} 11. cxd4 {[%clk
0:01:34.3]} 11... Nc7 {[%clk 0:02:32.5]} 12. Nc3 {[%clk 0:01:30.3]} 12... Ne6
{[%clk 0:02:28.3]} 13. Be3 {[%clk 0:01:23.6]} 13... a6 {[%clk 0:02:22.1]} 14.
Rc1 {[%clk 0:01:22.5]} 14... Na5 {[%clk 0:02:16.7]} 15. b3 {[%clk 0:01:18.4]}
15... b5 {[%clk 0:02:15.8]} 16. Qd2 {[%clk 0:01:14.3]} 16... Bb7 {[%clk
0:02:14.6]} 17. Bh6 {[%clk 0:01:07.1]} 17... Rc8 {[%clk 0:02:12.7]} 18. Bxg7
{[%clk 0:01:06.1]} 18... Kxg7 {[%clk 0:02:13.6]} 19. h4 {[%clk 0:00:58.8]} 19...
Qb6 {[%clk 0:02:08.2]} 0-1

[Event "*** Titled Tuesday Blitz"]
[Site "Chess.com"]
[Date "2021.04.06"]
[Round "2"]
[White "Murad_Ibrahimli"]
[Black "louis198"]
[Result "1-0"]
[WhiteElo "2824"]
[BlackElo "2536"]
[TimeControl "180+1"]
[EndTime "10:16:10 PDT"]
[Termination "Murad_Ibrahimli won by resignation"]

1. d4 {[%clk 0:03:00.9]} 1... e6 {[%clk 0:02:58.3]} 2. c4 {[%clk 0:03:01.8]}
2... d5 {[%clk 0:02:58]} 3. Nc3 {[%clk 0:03:01.7]} 3... Nf6 {[%clk 0:02:58]} 4.
Nf3 {[%clk 0:03:01]} 4... c6 {[%clk 0:02:58.2]} 5. e3 {[%clk 0:03:00.6]} 5...
Be7 {[%clk 0:02:57.9]} 6. Bd3 {[%clk 0:02:59.2]} 6... O-O {[%clk 0:02:58.1]} 7.
O-O {[%clk 0:02:58.6]} 7... dxc4 {[%clk 0:02:58.3]} 8. Bxc4 {[%clk 0:02:59.5]}
8... b5 {[%clk 0:02:58.8]} 9. Bd3 {[%clk 0:03:00]} 9... a6 {[%clk 0:02:59.4]}
10. Qc2 {[%clk 0:02:59.8]} 10... Bb7 {[%clk 0:02:57.2]} 11. Ne4 {[%clk
0:02:46.2]} 11... Nbd7 {[%clk 0:02:56.7]} 12. Nxf6+ {[%clk 0:02:38.6]} 12...
Nxf6 {[%clk 0:02:55.6]} 13. e4 {[%clk 0:02:37.6]} 13... h6 {[%clk 0:02:53]} 14.
h3 {[%clk 0:02:31.3]} 14... c5 {[%clk 0:02:48.9]} 15. dxc5 {[%clk 0:02:28.4]}
15... Bxc5 {[%clk 0:02:45.6]} 16. e5 {[%clk 0:02:28.1]} 16... Nd7 {[%clk
0:02:45.1]} 17. Bh7+ {[%clk 0:02:16.3]} 17... Kh8 {[%clk 0:02:44.2]} 18. Be4
{[%clk 0:02:16.6]} 18... Bxe4 {[%clk 0:02:41.3]} 19. Qxe4 {[%clk 0:02:17.5]}
19... Nb6 {[%clk 0:02:40.2]} 20. Bd2 {[%clk 0:01:57.8]} 20... Qd5 {[%clk
0:02:35.5]} 21. Qh4 {[%clk 0:01:57.2]} 21... Qd3 {[%clk 0:02:34.3]} 22. Rad1
{[%clk 0:01:52.1]} 22... Qg6 {[%clk 0:02:32.7]} 23. b4 {[%clk 0:01:45.2]} 23...
Bxb4 {[%clk 0:01:54.5]} 24. Bxb4 {[%clk 0:01:42.9]} 24... Rfc8 {[%clk 0:01:55]}
25. Bd6 {[%clk 0:01:28.2]} 25... Rc2 {[%clk 0:01:48.2]} 26. Rd4 {[%clk
0:01:22.8]} 26... Rxa2 {[%clk 0:01:39.1]} 27. Rg4 {[%clk 0:01:21.7]} 27... Qh7
{[%clk 0:01:31]} 28. Qe7 {[%clk 0:01:08.9]} 28... Qf5 {[%clk 0:01:25.8]} 29. Qb7
{[%clk 0:01:07.7]} 1-0